[Event "Live Chess"]
[Site "Chess.com"]
[Date "2024.06.02"]
[Round "-"]
[White "booktrunk"]
[Black "bonantagulo"]
[Result "0-1"]
[WhiteElo "1513"]
[BlackElo "2227"]
[TimeControl "300"]
[EndTime "1:50:16 PDT"]
[Termination "bonantagulo won by resignation"]

1. d4 {[%clk 0:04:52.1]} 1... Nf6 {[%clk 0:04:58.8]} 2. Nc3 {[%clk 0:04:50.5]}
2... d5 {[%clk 0:04:57.8]} 3. Bf4 {[%clk 0:04:49]} 3... c5 {[%clk 0:04:53.6]} 4.
dxc5 {[%clk 0:04:42.5]} 4... e6 {[%clk 0:04:50.5]} 5. e3 {[%clk 0:04:39.7]} 5...
Bxc5 {[%clk 0:04:42.8]} 6. Bb5+ {[%clk 0:04:37.1]} 6... Nc6 {[%clk 0:04:38]} 7.
Nf3 {[%clk 0:04:34.7]} 7... O-O {[%clk 0:04:36.3]} 8. Ne5 {[%clk 0:04:28.7]}
8... Nxe5 {[%clk 0:04:24.3]} 9. Bxe5 {[%clk 0:04:25.6]} 9... a6 {[%clk
0:04:14.5]} 10. Be2 {[%clk 0:04:23.5]} 10... Ne4 {[%clk 0:04:01.9]} 11. Nxe4
{[%clk 0:04:11.7]} 11... dxe4 {[%clk 0:04:01.8]} 12. Qxd8 {[%clk 0:04:10]} 12...
Rxd8 {[%clk 0:03:54]} 13. Rd1 {[%clk 0:04:08.4]} 13... Rxd1+ {[%clk 0:03:48.6]}
14. Bxd1 {[%clk 0:04:06.5]} 14... f6 {[%clk 0:03:42.3]} 15. Bc7 {[%clk
0:04:03.1]} 15... e5 {[%clk 0:03:35.6]} 16. O-O {[%clk 0:04:00.8]} 16... Be6
{[%clk 0:03:30.5]} 17. b3 {[%clk 0:03:51.7]} 17... b6 {[%clk 0:03:21.6]} 18. Be2
{[%clk 0:03:47.3]} 18... Rc8 {[%clk 0:03:17.7]} 19. Bxb6 {[%clk 0:03:43]} 19...
Bxb6 {[%clk 0:03:17.6]} 20. Bxa6 {[%clk 0:03:41.4]} 20... Rxc2 {[%clk
0:03:16.8]} 21. Ra1 {[%clk 0:03:37.6]} 21... Ba5 {[%clk 0:03:02]} 22. a3 {[%clk
0:03:32.3]} 22... Bxb3 {[%clk 0:03:00.1]} 23. Rb1 {[%clk 0:03:30.9]} 23... Bd2
{[%clk 0:02:53.9]} 24. Rxb3 {[%clk 0:03:27]} 24... Rc1+ {[%clk 0:02:53.3]} 25.
Bf1 {[%clk 0:03:23.9]} 25... Ra1 {[%clk 0:02:52.7]} 26. g3 {[%clk 0:03:18.2]}
26... h5 {[%clk 0:02:50.1]} 27. Kg2 {[%clk 0:03:16.5]} 27... Bc1 {[%clk
0:02:48.5]} 28. Bc4+ {[%clk 0:03:12]} 28... Kh7 {[%clk 0:02:45.8]} 29. Rb8
{[%clk 0:03:10.5]} 29... Rxa3 {[%clk 0:02:43.3]} 30. Bg8+ {[%clk 0:03:08.6]}
30... Kh6 {[%clk 0:02:41.6]} 31. Bf7 {[%clk 0:03:06.9]} 31... g6 {[%clk
0:02:35.6]} 32. Rg8 {[%clk 0:02:52.2]} 32... g5 {[%clk 0:02:34.6]} 33. Rg6+
{[%clk 0:02:48.6]} 33... Kh7 {[%clk 0:02:33.3]} 34. Rxf6 {[%clk 0:02:45.9]}
34... Kg7 {[%clk 0:02:32.1]} 35. Rf5 {[%clk 0:02:41.5]} 35... Ra2 {[%clk
0:02:31.2]} 36. Bxh5 {[%clk 0:02:39.5]} 36... Bxe3 {[%clk 0:02:30.2]} 37. Bg4
{[%clk 0:02:35.2]} 37... Bd4 {[%clk 0:02:26.5]} 38. h4 {[%clk 0:02:29.2]} 38...
gxh4 {[%clk 0:02:25.5]} 39. gxh4 {[%clk 0:02:27.6]} 39... e3 {[%clk 0:02:25.4]}
40. Rg5+ {[%clk 0:02:19.8]} 40... Kh6 {[%clk 0:02:22.4]} 41. Kf1 {[%clk
0:02:19.2]} 41... exf2 {[%clk 0:02:15]} 42. Rh5+ {[%clk 0:02:16.3]} 42... Kg6
{[%clk 0:02:13.5]} 43. Rg5+ {[%clk 0:02:14.9]} 43... Kh6 {[%clk 0:02:10.7]} 44.
Be2 {[%clk 0:02:11.9]} 44... Ra1+ {[%clk 0:02:08]} 45. Kg2 {[%clk 0:02:09.2]}
45... Rg1+ {[%clk 0:02:06.6]} 46. Kh3 {[%clk 0:02:05.7]} 46... f1=Q+ {[%clk
0:02:01.4]} 47. Bxf1 {[%clk 0:02:02.8]} 47... Rxf1 {[%clk 0:02:01.3]} 48. Rg8
{[%clk 0:01:59.8]} 48... Rg1 {[%clk 0:01:57.4]} 49. Rh8+ {[%clk 0:01:57.3]}
49... Kg6 {[%clk 0:01:56]} 50. Rg8+ {[%clk 0:01:55.7]} 50... Kf5 {[%clk
0:01:54.8]} 51. Rf8+ {[%clk 0:01:48.6]} 51... Ke4 {[%clk 0:01:53]} 52. h5 {[%clk
0:01:46.5]} 52... Be3 {[%clk 0:01:48.7]} 53. Ra8 {[%clk 0:01:39.3]} 53... Bf4
{[%clk 0:01:46.8]} 54. Ra4+ {[%clk 0:01:37.9]} 54... Kf5 {[%clk 0:01:46.1]} 55.
Ra5 {[%clk 0:01:33.2]} 55... Rg3+ {[%clk 0:01:44.8]} 56. Kh4 {[%clk 0:01:31.3]}
56... Rg2 {[%clk 0:01:44.1]} 57. Ra3 {[%clk 0:01:24.5]} 57... Rh2+ {[%clk
0:01:38.7]} 58. Rh3 {[%clk 0:01:22.8]} 58... Rxh3+ {[%clk 0:01:38.2]} 59. Kxh3
{[%clk 0:01:22.7]} 59... Kg5 {[%clk 0:01:37.9]} 60. Kg2 {[%clk 0:01:22.3]} 60...
Kxh5 {[%clk 0:01:37.3]} 61. Kf3 {[%clk 0:01:22.2]} 61... Kg5 {[%clk 0:01:36.8]}
62. Ke4 {[%clk 0:01:22.1]} 62... Kf6 {[%clk 0:01:36.2]} 63. Kf3 {[%clk
0:01:20.9]} 63... Kf5 {[%clk 0:01:36.1]} 64. Kf2 {[%clk 0:01:20.1]} 64... e4
{[%clk 0:01:36]} 65. Ke2 {[%clk 0:01:19.1]} 65... Be5 {[%clk 0:01:35.9]} 66. Ke3
{[%clk 0:01:17.6]} 66... Bd6 {[%clk 0:01:35.5]} 67. Ke2 {[%clk 0:01:16.4]} 67...
Kf4 {[%clk 0:01:35.4]} 68. Kf2 {[%clk 0:01:15.2]} 68... e3+ {[%clk 0:01:35.3]}
69. Ke2 {[%clk 0:01:14.1]} 69... Ke4 {[%clk 0:01:35.2]} 70. Kd1 {[%clk
0:01:12.6]} 70... Kf3 {[%clk 0:01:35.1]} 71. Ke1 {[%clk 0:01:11.4]} 71... e2
{[%clk 0:01:32.6]} 72. Kd2 {[%clk 0:01:10.3]} 72... Kf2 {[%clk 0:01:31.2]} 0-1

[Event "Live Chess"]
[Site "Chess.com"]
[Date "2024.06.02"]
[Round "-"]
[White "DavrosLight"]
[Black "MaksymYurii"]
[Result "0-1"]
[WhiteElo "787"]
[BlackElo "1001"]
[TimeControl "300"]
[EndTime "1:50:27 PDT"]
[Termination "MaksymYurii won on time"]

1. e4 {[%clk 0:04:57.4]} 1... Nc6 {[%clk 0:04:58.3]} 2. Nf3 {[%clk 0:04:52.2]}
2... e5 {[%clk 0:04:57.4]} 3. d4 {[%clk 0:04:45.5]} 3... exd4 {[%clk 0:04:53]}
4. Nxd4 {[%clk 0:04:44.7]} 4... Nxd4 {[%clk 0:04:52.2]} 5. Qxd4 {[%clk
0:04:43.7]} 5... Qe7 {[%clk 0:04:40.1]} 6. Bh6 {[%clk 0:04:38.9]} 6... Qb4+
{[%clk 0:04:32.9]} 7. Qxb4 {[%clk 0:04:28.1]} 7... Bxb4+ {[%clk 0:04:31.5]} 8.
Bd2 {[%clk 0:04:24.8]} 8... Bxd2+ {[%clk 0:04:28.7]} 9. Nxd2 {[%clk 0:04:24.1]}
9... Nh6 {[%clk 0:04:23.3]} 10. O-O-O {[%clk 0:04:19.9]} 10... O-O {[%clk
0:04:22.3]} 11. Bc4 {[%clk 0:04:14.4]} 11... Re8 {[%clk 0:04:19.5]} 12. h3
{[%clk 0:04:06.5]} 12... c6 {[%clk 0:04:17.1]} 13. g4 {[%clk 0:04:02.3]} 13...
d5 {[%clk 0:04:15.9]} 14. exd5 {[%clk 0:03:59]} 14... cxd5 {[%clk 0:04:14.8]}
15. g5 {[%clk 0:03:51.6]} 15... dxc4 {[%clk 0:04:04.6]} 16. gxh6 {[%clk
0:03:49.8]} 16... gxh6 {[%clk 0:04:03.9]} 17. Nxc4 {[%clk 0:03:46.7]} 17... Be6
{[%clk 0:03:54.1]} 18. Rhg1+ {[%clk 0:03:40.2]} 18... Kh8 {[%clk 0:03:51.9]} 19.
Ne5 {[%clk 0:03:36.9]} 19... Bxa2 {[%clk 0:03:48.6]} 20. Rde1 {[%clk 0:03:04.8]}
20... Be6 {[%clk 0:03:44.6]} 21. h4 {[%clk 0:02:52.8]} 21... a5 {[%clk
0:03:35.9]} 22. Re2 {[%clk 0:02:50.5]} 22... a4 {[%clk 0:03:32.6]} 23. Rge1
{[%clk 0:02:49.1]} 23... a3 {[%clk 0:03:28.9]} 24. Nxf7+ {[%clk 0:02:46.3]}
24... Bxf7 {[%clk 0:03:25.9]} 25. bxa3 {[%clk 0:02:42.8]} 25... Rxe2 {[%clk
0:03:17.3]} 26. Rxe2 {[%clk 0:02:40.4]} 26... Rxa3 {[%clk 0:03:14.8]} 27. Kb2
{[%clk 0:02:37.2]} 27... Ra2+ {[%clk 0:03:08]} 28. Kb1 {[%clk 0:02:29.9]} 28...
Ra4 {[%clk 0:03:02.1]} 29. Re7 {[%clk 0:02:23.2]} 29... Ba2+ {[%clk 0:02:59.8]}
30. Kc1 {[%clk 0:02:11.8]} 30... Rxh4 {[%clk 0:02:54.9]} 31. Rxb7 {[%clk
0:02:03.9]} 31... Rh2 {[%clk 0:02:34.5]} 32. f4 {[%clk 0:01:54.1]} 32... Rf2
{[%clk 0:02:32.3]} 33. Ra7 {[%clk 0:01:43.8]} 33... Bf7 {[%clk 0:02:25.4]} 34.
Rxf7 {[%clk 0:01:41]} 34... Kg8 {[%clk 0:02:22.1]} 35. Rf6 {[%clk 0:01:36.6]}
35... Kg7 {[%clk 0:02:20.8]} 36. Rc6 {[%clk 0:01:14.6]} 36... h5 {[%clk
0:02:17.5]} 37. c4 {[%clk 0:01:08.9]} 37... h4 {[%clk 0:02:16.3]} 38. Rd6 {[%clk
0:00:55]} 38... Rxf4 {[%clk 0:02:13.9]} 39. Rc6 {[%clk 0:00:41]} 39... h3 {[%clk
0:02:11.6]} 40. Rc7+ {[%clk 0:00:28.6]} 40... Kg6 {[%clk 0:02:09.9]} 41. Rc6+
{[%clk 0:00:27.5]} 41... Kg5 {[%clk 0:02:07.3]} 42. Rc7 {[%clk 0:00:23.8]} 42...
h5 {[%clk 0:02:05.7]} 43. Rg7+ {[%clk 0:00:19]} 43... Kh4 {[%clk 0:01:58.7]} 44.
c5 {[%clk 0:00:14.6]} 44... Rc4+ {[%clk 0:01:55.5]} 45. Kd2 {[%clk 0:00:11.7]}
45... Rxc5 {[%clk 0:01:54.4]} 46. Ke2 {[%clk 0:00:09.3]} 46... Rc4 {[%clk
0:01:53.4]} 47. Kf2 {[%clk 0:00:08.6]} 47... Rg4 {[%clk 0:01:52.2]} 48. Rxg4+
{[%clk 0:00:06.8]} 48... hxg4 {[%clk 0:01:50.1]} 49. Kg1 {[%clk 0:00:05.4]}
49... g3 {[%clk 0:01:48.8]} 50. Kh1 {[%clk 0:00:03.5]} 50... Kg4 {[%clk
0:01:48]} 51. Kg1 {[%clk 0:00:02.2]} 51... h2+ {[%clk 0:01:40.5]} 52. Kh1 {[%clk
0:00:01.5]} 52... Kh4 {[%clk 0:01:36.9]} 53. Kg2 {[%clk 0:00:00.4]} 53... h1=Q+
{[%clk 0:01:21.8]} 0-1

[Event "Live Chess"]
[Site "Chess.com"]
[Date "2024.06.02"]
[Round "-"]
[White "Dhaydon19"]
[Black "StoreySniper"]
[Result "0-1"]
[WhiteElo "2628"]
[BlackElo "2512"]
[TimeControl "300"]
[EndTime "1:50:47 PDT"]
[Termination "StoreySniper won by resignation"]

1. d4 {[%clk 0:04:58.3]} 1... g6 {[%clk 0:04:58.9]} 2. Nf3 {[%clk 0:04:58]} 2...
Bg7 {[%clk 0:04:58.5]} 3. g3 {[%clk 0:04:57.5]} 3... c5 {[%clk 0:04:58]} 4. c3
{[%clk 0:04:57.1]} 4... cxd4 {[%clk 0:04:56.9]} 5. cxd4 {[%clk 0:04:57]} 5... d5
{[%clk 0:04:56.4]} 6. Bg2 {[%clk 0:04:56.3]} 6... Nc6 {[%clk 0:04:56]} 7. O-O
{[%clk 0:04:56]} 7... e6 {[%clk 0:04:55.2]} 8. Nc3 {[%clk 0:04:55.5]} 8... Nge7
{[%clk 0:04:54.6]} 9. Bg5 {[%clk 0:04:54.6]} 9... h6 {[%clk 0:04:53.3]} 10. Bxe7
{[%clk 0:04:53.7]} 10... Qxe7 {[%clk 0:04:50.8]} 11. e3 {[%clk 0:04:53.6]} 11...
O-O {[%clk 0:04:45.2]} 12. Rc1 {[%clk 0:04:52.4]} 12... Bd7 {[%clk 0:04:42.6]}
13. a3 {[%clk 0:04:49.7]} 13... Rfc8 {[%clk 0:04:41.2]} 14. Qe2 {[%clk
0:04:48.1]} 14... a6 {[%clk 0:04:32.1]} 15. Rfd1 {[%clk 0:04:40]} 15... Na5
{[%clk 0:04:25.4]} 16. Nd2 {[%clk 0:04:33.3]} 16... Nc4 {[%clk 0:04:11.9]} 17.
Nxc4 {[%clk 0:04:32]} 17... Rxc4 {[%clk 0:04:10.9]} 18. b3 {[%clk 0:04:30.9]}
18... Rc6 {[%clk 0:03:56.7]} 19. Qb2 {[%clk 0:04:28.2]} 19... Bf8 {[%clk
0:03:45.8]} 20. b4 {[%clk 0:04:25.8]} 20... Rac8 {[%clk 0:03:44.2]} 21. Na4
{[%clk 0:04:22.9]} 21... Rxc1 {[%clk 0:03:41.1]} 22. Rxc1 {[%clk 0:04:22.3]}
22... Rxc1+ {[%clk 0:03:39.8]} 23. Qxc1 {[%clk 0:04:22.2]} 23... Bxa4 {[%clk
0:03:38.8]} 0-1

[Event "Live Chess"]
[Site "Chess.com"]
[Date "2024.06.02"]
[Round "-"]
[White "Brooms1989"]
[Black "SergiiA"]
[Result "1-0"]
[WhiteElo "1156"]
[BlackElo "1537"]
[TimeControl "300"]
[EndTime "1:50:55 PDT"]
[Termination "Brooms1989 won on time"]

1. e4 {[%clk 0:04:55.4]} 1... c5 {[%clk 0:04:53.4]} 2. Be2 {[%clk 0:04:53.7]}
2... a6 {[%clk 0:04:52.4]} 3. f4 {[%clk 0:04:51.3]} 3... Nc6 {[%clk 0:04:50.9]}
4. Nf3 {[%clk 0:04:49.9]} 4... d6 {[%clk 0:04:47.3]} 5. d3 {[%clk 0:04:48.7]}
5... g6 {[%clk 0:04:45.5]} 6. O-O {[%clk 0:04:48]} 6... Bg7 {[%clk 0:04:45.2]}
7. c3 {[%clk 0:04:45.2]} 7... e5 {[%clk 0:04:43.3]} 8. Qe1 {[%clk 0:04:39.6]}
8... Nge7 {[%clk 0:04:40.6]} 9. Qg3 {[%clk 0:04:22.4]} 9... f5 {[%clk
0:04:22.5]} 10. Nbd2 {[%clk 0:03:51.2]} 10... O-O {[%clk 0:04:19.6]} 11. Qh4
{[%clk 0:03:35.6]} 11... h6 {[%clk 0:03:34.5]} 12. fxe5 {[%clk 0:03:21.9]} 12...
dxe5 {[%clk 0:03:26.6]} 13. Nc4 {[%clk 0:03:15.4]} 13... f4 {[%clk 0:03:22.9]}
14. g3 {[%clk 0:03:07.4]} 14... g5 {[%clk 0:03:15.1]} 15. Qh5 {[%clk 0:02:59.1]}
15... b5 {[%clk 0:02:57.8]} 16. Ncd2 {[%clk 0:02:35.1]} 16... Be6 {[%clk
0:02:46.8]} 17. gxf4 {[%clk 0:02:28.7]} 17... exf4 {[%clk 0:02:41.6]} 18. Kh1
{[%clk 0:02:24.6]} 18... Qd7 {[%clk 0:02:33]} 19. Rg1 {[%clk 0:02:18.8]} 19...
Bf7 {[%clk 0:02:16.5]} 20. Qg4 {[%clk 0:02:14.1]} 20... Qxg4 {[%clk 0:02:14.8]}
21. Rxg4 {[%clk 0:02:14]} 21... Be6 {[%clk 0:02:09.8]} 22. Rg1 {[%clk
0:02:10.8]} 22... g4 {[%clk 0:01:49.5]} 23. Nh4 {[%clk 0:01:50.3]} 23... f3
{[%clk 0:01:47.7]} 24. Ndxf3 {[%clk 0:01:48.9]} 24... gxf3 {[%clk 0:01:43.7]}
25. Nxf3 {[%clk 0:01:48.8]} 25... Kh7 {[%clk 0:01:41.2]} 26. Be3 {[%clk
0:01:36.3]} 26... c4 {[%clk 0:01:21.7]} 27. d4 {[%clk 0:01:34.9]} 27... Bd7
{[%clk 0:01:12]} 28. e5 {[%clk 0:01:22.9]} 28... Rf7 {[%clk 0:00:50.7]} 29. Raf1
{[%clk 0:01:13]} 29... Raf8 {[%clk 0:00:49.2]} 30. Nd2 {[%clk 0:01:01.9]} 30...
Rxf1 {[%clk 0:00:46.9]} 31. Rxf1 {[%clk 0:01:01.8]} 31... Rxf1+ {[%clk
0:00:46.3]} 32. Bxf1 {[%clk 0:01:01.7]} 32... Nf5 {[%clk 0:00:39.2]} 33. Bf2
{[%clk 0:00:56.1]} 33... Nce7 {[%clk 0:00:37.6]} 34. Ne4 {[%clk 0:00:47]} 34...
Bc6 {[%clk 0:00:35.1]} 35. Bg2 {[%clk 0:00:36.2]} 35... Nd5 {[%clk 0:00:30.4]}
36. Kg1 {[%clk 0:00:31.9]} 36... Nde3 {[%clk 0:00:27.8]} 37. Bxe3 {[%clk
0:00:27.9]} 37... Nxe3 {[%clk 0:00:24.7]} 38. Nf6+ {[%clk 0:00:22.6]} 38... Bxf6
{[%clk 0:00:18]} 39. Bxc6 {[%clk 0:00:21.9]} 39... Be7 {[%clk 0:00:13.7]} 40.
Kf2 {[%clk 0:00:19.9]} 40... Nd1+ {[%clk 0:00:12.2]} 41. Kf3 {[%clk 0:00:17.8]}
41... Nxb2 {[%clk 0:00:11.6]} 42. d5 {[%clk 0:00:17.1]} 42... Na4 {[%clk
0:00:10.4]} 43. d6 {[%clk 0:00:15.5]} 43... Bd8 {[%clk 0:00:07.7]} 44. e6 {[%clk
0:00:14.3]} 44... Kg7 {[%clk 0:00:07.6]} 45. e7 {[%clk 0:00:11.8]} 45... Bxe7
{[%clk 0:00:06]} 46. dxe7 {[%clk 0:00:09.8]} 46... Kf6 {[%clk 0:00:03.7]} 47.
e8=Q {[%clk 0:00:09.7]} 47... Kg5 {[%clk 0:00:01.8]} 48. Qf8 {[%clk 0:00:09.6]}
48... Kg6 {[%clk 0:00:00.7]} 49. Qg8+ {[%clk 0:00:09.5]} 1-0

[Event "Live Chess"]
[Site "Chess.com"]
[Date "2024.06.02"]
[Round "-"]
[White "ameetghasi100"]
[Black "Zhevzh1k7"]
[Result "1-0"]
[WhiteElo "2792"]
[BlackElo "1097"]
[TimeControl "300"]
[EndTime "1:51:10 PDT"]
[Termination "ameetghasi100 won by checkmate"]

1. e4 {[%clk 0:04:58.5]} 1... c6 {[%clk 0:04:58.2]} 2. Nc3 {[%clk 0:04:58.4]}
2... d5 {[%clk 0:04:56.8]} 3. d4 {[%clk 0:04:57.8]} 3... dxe4 {[%clk 0:04:55.3]}
4. Nge2 {[%clk 0:04:56.9]} 4... Bf5 {[%clk 0:04:51.2]} 5. Ng3 {[%clk 0:04:54.2]}
5... Bg6 {[%clk 0:04:46.4]} 6. Be3 {[%clk 0:04:54.1]} 6... Nf6 {[%clk
0:04:42.6]} 7. Be2 {[%clk 0:04:54]} 7... Nbd7 {[%clk 0:04:40.4]} 8. h4 {[%clk
0:04:53.9]} 8... h6 {[%clk 0:04:38.8]} 9. h5 {[%clk 0:04:51.7]} 9... Bh7 {[%clk
0:04:37.6]} 10. Qd2 {[%clk 0:04:51.6]} 10... e6 {[%clk 0:04:34.7]} 11. O-O-O
{[%clk 0:04:51.5]} 11... Bb4 {[%clk 0:04:33]} 12. a3 {[%clk 0:04:49.4]} 12...
Ba5 {[%clk 0:04:30.6]} 13. Kb1 {[%clk 0:04:48.5]} 13... O-O {[%clk 0:04:28.1]}
14. Qc1 {[%clk 0:04:42.1]} 14... Bxc3 {[%clk 0:04:24.1]} 15. bxc3 {[%clk
0:04:42]} 15... Qb6+ {[%clk 0:04:21.9]} 16. Qb2 {[%clk 0:04:40.7]} 16... Qxb2+
{[%clk 0:04:19.4]} 17. Kxb2 {[%clk 0:04:40.6]} 17... a5 {[%clk 0:04:16.2]} 18.
c4 {[%clk 0:04:38.8]} 18... a4 {[%clk 0:04:13.3]} 19. Kc3 {[%clk 0:04:37.3]}
19... b6 {[%clk 0:04:10]} 20. Rb1 {[%clk 0:04:36.6]} 20... Rab8 {[%clk
0:04:05.5]} 21. Rb2 {[%clk 0:04:35.5]} 21... c5 {[%clk 0:04:02]} 22. Rhb1 {[%clk
0:04:32.5]} 22... cxd4+ {[%clk 0:03:57.8]} 23. Bxd4 {[%clk 0:04:32.4]} 23...
Nd5+ {[%clk 0:03:52.4]} 24. cxd5 {[%clk 0:04:30.3]} 24... exd5 {[%clk
0:03:50.1]} 25. Nf1 {[%clk 0:04:28.6]} 25... Rfc8+ {[%clk 0:03:40.6]} 26. Kd2
{[%clk 0:04:23.4]} 26... Bf5 {[%clk 0:03:31.3]} 27. Ne3 {[%clk 0:04:22.5]} 27...
Be6 {[%clk 0:03:27.1]} 28. c3 {[%clk 0:04:22.4]} 28... f5 {[%clk 0:03:12.1]} 29.
Rb4 {[%clk 0:04:22.3]} 29... f4 {[%clk 0:03:10.6]} 30. R1b2 {[%clk 0:04:22.2]}
30... fxe3+ {[%clk 0:03:09.5]} 31. Kxe3 {[%clk 0:04:18.8]} 31... Kf7 {[%clk
0:02:51.5]} 32. Rxa4 {[%clk 0:04:16.1]} 32... b5 {[%clk 0:02:42.3]} 33. Rxb5
{[%clk 0:04:12.1]} 33... Rxb5 {[%clk 0:02:40.5]} 34. Bxb5 {[%clk 0:04:12]} 34...
Nc5 {[%clk 0:02:30.2]} 35. Ra7+ {[%clk 0:04:10.2]} 35... Kf8 {[%clk 0:02:20.4]}
36. Bxg7+ {[%clk 0:04:08.3]} 36... Kg8 {[%clk 0:02:17.5]} 37. Bxh6 {[%clk
0:04:08.2]} 37... Rb8 {[%clk 0:01:53.2]} 38. a4 {[%clk 0:04:05.7]} 38... Nb7
{[%clk 0:01:38.5]} 39. Bf4 {[%clk 0:04:01.4]} 39... Rc8 {[%clk 0:01:33.4]} 40.
Rxb7 {[%clk 0:03:58.6]} 40... Rxc3+ {[%clk 0:01:32]} 41. Kd4 {[%clk 0:03:57.9]}
41... Rd3+ {[%clk 0:01:29.2]} 42. Bxd3 {[%clk 0:03:55]} 42... exd3 {[%clk
0:01:28.3]} 43. Bd2 {[%clk 0:03:54.9]} 43... Kf8 {[%clk 0:01:24.9]} 44. Rb6
{[%clk 0:03:54.8]} 44... Bd7 {[%clk 0:01:23]} 45. h6 {[%clk 0:03:54.7]} 45...
Kg8 {[%clk 0:01:21.3]} 46. a5 {[%clk 0:03:54.6]} 46... Be8 {[%clk 0:01:18.4]}
47. a6 {[%clk 0:03:54.5]} 47... Kh7 {[%clk 0:01:17.1]} 48. g4 {[%clk 0:03:54.4]}
48... Bg6 {[%clk 0:01:13.8]} 49. g5 {[%clk 0:03:54.3]} 49... Kg8 {[%clk
0:01:12.6]} 50. a7 {[%clk 0:03:54.2]} 50... Kf7 {[%clk 0:01:10.9]} 51. Rf6+
{[%clk 0:03:52.4]} 51... Ke7 {[%clk 0:01:09.4]} 52. a8=Q {[%clk 0:03:52.3]}
52... Kd7 {[%clk 0:01:08.3]} 53. Qa7+ {[%clk 0:03:51.3]} 53... Kc8 {[%clk
0:01:07]} 54. Rf8+ {[%clk 0:03:49.7]} 54... Be8 {[%clk 0:01:06.4]} 55. Rxe8#
{[%clk 0:03:49.1]} 1-0

[Event "Live Chess"]
[Site "Chess.com"]
[Date "2024.06.02"]
[Round "-"]
[White "elis06"]
[Black "KeithArkell"]
[Result "0-1"]
[WhiteElo "2135"]
[BlackElo "2400"]
[TimeControl "300"]
[EndTime "1:51:37 PDT"]
[Termination "KeithArkell won by checkmate"]

1. e4 {[%clk 0:04:55.6]} 1... c6 {[%clk 0:04:59.4]} 2. d4 {[%clk 0:04:54.4]}
2... d5 {[%clk 0:04:58.7]} 3. exd5 {[%clk 0:04:53.8]} 3... cxd5 {[%clk
0:04:58.2]} 4. Bd3 {[%clk 0:04:53.2]} 4... Nf6 {[%clk 0:04:57.8]} 5. c3 {[%clk
0:04:52.5]} 5... Nc6 {[%clk 0:04:57.4]} 6. h3 {[%clk 0:04:51.1]} 6... g6 {[%clk
0:04:55.8]} 7. Nf3 {[%clk 0:04:50.4]} 7... Bf5 {[%clk 0:04:55]} 8. O-O {[%clk
0:04:48.9]} 8... Bxd3 {[%clk 0:04:53.9]} 9. Qxd3 {[%clk 0:04:48.8]} 9... Bg7
{[%clk 0:04:53.4]} 10. Bf4 {[%clk 0:04:47.9]} 10... O-O {[%clk 0:04:53.3]} 11.
Nbd2 {[%clk 0:04:47]} 11... a6 {[%clk 0:04:52.2]} 12. Rfe1 {[%clk 0:04:45.2]}
12... b5 {[%clk 0:04:50.7]} 13. Ne5 {[%clk 0:04:40.6]} 13... Nxe5 {[%clk
0:04:49.2]} 14. Bxe5 {[%clk 0:04:39.1]} 14... e6 {[%clk 0:04:48.6]} 15. a4
{[%clk 0:04:36.1]} 15... Qb6 {[%clk 0:04:45.4]} 16. axb5 {[%clk 0:04:32.8]}
16... Qxb5 {[%clk 0:04:44.9]} 17. Qxb5 {[%clk 0:04:23.2]} 17... axb5 {[%clk
0:04:44.2]} 18. Nb3 {[%clk 0:04:17.4]} 18... Nd7 {[%clk 0:04:40.3]} 19. Bd6
{[%clk 0:04:14]} 19... Rfc8 {[%clk 0:04:38]} 20. Nc5 {[%clk 0:04:06.9]} 20...
Nxc5 {[%clk 0:04:35.8]} 21. Bxc5 {[%clk 0:04:05.7]} 21... Bf6 {[%clk 0:04:26.6]}
22. b4 {[%clk 0:04:01.4]} 22... g5 {[%clk 0:04:25.4]} 23. Kf1 {[%clk 0:03:59.6]}
23... Kg7 {[%clk 0:04:20.2]} 24. Ke2 {[%clk 0:03:58.5]} 24... Kg6 {[%clk
0:04:19.7]} 25. Kd3 {[%clk 0:03:57.6]} 25... h5 {[%clk 0:04:19.1]} 26. Kc2
{[%clk 0:03:44]} 26... h4 {[%clk 0:04:18.1]} 27. Kb3 {[%clk 0:03:40]} 27... Kf5
{[%clk 0:04:15.8]} 28. Ra2 {[%clk 0:03:37.1]} 28... Rxa2 {[%clk 0:04:14]} 29.
Kxa2 {[%clk 0:03:35.9]} 29... Ra8+ {[%clk 0:04:12.9]} 30. Kb2 {[%clk 0:03:34.8]}
30... g4 {[%clk 0:04:12.2]} 31. hxg4+ {[%clk 0:03:29.7]} 31... Kxg4 {[%clk
0:04:11.5]} 32. Bd6 {[%clk 0:03:22.7]} 32... Kf5 {[%clk 0:04:04.2]} 33. g3
{[%clk 0:03:14.2]} 33... h3 {[%clk 0:04:02.7]} 34. f3 {[%clk 0:03:08.1]} 34...
Rh8 {[%clk 0:03:56.9]} 35. Rh1 {[%clk 0:03:06.5]} 35... e5 {[%clk 0:03:54.1]}
36. dxe5 {[%clk 0:02:37.9]} 36... Bxe5 {[%clk 0:03:54]} 37. Bxe5 {[%clk
0:02:36.4]} 37... Kxe5 {[%clk 0:03:52.3]} 38. Rh2 {[%clk 0:02:26.7]} 38... f5
{[%clk 0:03:50.1]} 39. Kc2 {[%clk 0:02:22.6]} 39... f4 {[%clk 0:03:49.2]} 40. g4
{[%clk 0:02:19.9]} 40... Kf6 {[%clk 0:03:48.2]} 41. Kd3 {[%clk 0:02:18.5]} 41...
Kg5 {[%clk 0:03:47.7]} 42. Ke2 {[%clk 0:02:13.3]} 42... Kh4 {[%clk 0:03:46.9]}
43. Kf2 {[%clk 0:02:10.9]} 43... Ra8 {[%clk 0:03:45.9]} 44. Rh1 {[%clk
0:02:05.8]} 44... Ra2+ {[%clk 0:03:44.4]} 45. Kg1 {[%clk 0:01:59.4]} 45... Kg3
{[%clk 0:03:43.5]} 46. g5 {[%clk 0:01:58.1]} 46... Ra1# {[%clk 0:03:42.4]} 0-1